Workbook

Sheet Vsebina
B14: Posvetovanje o predlogu popustov, multiplikatorjev in sezonskih faktorjev
B15: na podlagi 28. člena Uredbe Komisije (EU) 2017/460 z dne 16. marca 2017 o oblikovanju kodeksa omrežja o usklajenih tarifnih strukturah za plin
B19: Priloga 1
B20: ='Sezonski faktorji'!B3:F3 -> Določitev sezonskih faktorjev za tarifno obdobje 2026

Sheet Sezonski faktorji
B3: ="Določitev sezonskih faktorjev za tarifno obdobje "&F20+2 -> Določitev sezonskih faktorjev za tarifno obdobje 2026
B4: skladno s 15. členom UREDBE KOMISIJE (EU) 2017/460
B5: z dne 16. marca 2017 o oblikovanju kodeksa omrežja o usklajenih tarifnih strukturah za plin
B7: Parametri izračuna
E8: Vrednosti
B9: Multiplikatorji za kvartalne produkte zmogljivosti | E9: 1.4
B10: Multiplikatorji za mesečne produkte zmogljivosti (maksimalno 1,5) | E10: 1.45
B11: Multiplikatorji za dnevne produkte zmogljivosti (maksimalno 3) | E11: 2.75
B12: Multiplikatorji za znotraj-dnevne produkte zmogljivosti (maksimalno 3) | E12: 2.8
B13: Potenčni eksponent E (0 <= E <= 2) | E13: 1.5
B17: Povprečni urni pretok za vsak posamezen mesec [kWh]
B19: Plinski mesec | C19: Leto
C20: 2021 | D20: 2022 | E20: 2023 | F20: 2024 | G20: 2025*
B21: Januar | C21: 1906519.599 | D21: 1867603.306 | E21: 1525416.102 | F21: 1611124.727 | G21: 1616270.065
B22: Februar | C22: 1755022.674 | D22: 1649721.385 | E22: 1602272.022 | F22: 1317793.002 | G22: 1399101.96
B23: Marec | C23: 1625654.688 | D23: 2049975.096 | E23: 1573760.972 | F23: 1207010.673 | G23: 1268442.215
B24: April | C24: 1541375.939 | D24: 1736572.448 | E24: 1413478.397 | F24: 1107418.294 | G24: 1137819.561
B25: Maj | C25: 1108391.969 | D25: 986687.8306 | E25: 1376241.303 | F25: 902670.3481 | G25: 875157.1632
B26: Junij | C26: 942755.4903 | D26: 965414.5193 | E26: 1004398.869 | F26: 792023.6513 | G26: 833776.4413
B27: Julij | C27: 897633.279 | D27: 1332662.375 | E27: 1006964.689 | F27: 831519.6816 | G27: 813881.7855
B28: Avgust | C28: 947631.8871 | D28: 2008199.074 | E28: 770338.7513 | F28: 771513.1758 | G28: 778946.7613
B29: September | C29: 1047053.692 | D29: 1139534.521 | E29: 914577.972 | F29: 893688.8727 | G29: 909613.6713
B30: Oktober | C30: 1243826.08 | D30: 1541847.83 | E30: 894175.8939 | F30: 878594.8161 | G30: 954467.0423
B31: November | C31: 1548936.633 | D31: 1851654.528 | E31: 1348157.911 | F31: 1358115.084 | G31: 1454889.206
B32: December | C32: 1920069.608 | D32: 1399680.49 | E32: 1436345.233 | F32: 1542055.005 | G32: 1656082.33
B33: Povprečno | C33: =AVERAGE(C21:C32) -> 1373739.295 | D33: =AVERAGE(D21:D32) -> 1544129.45 | E33: 1238844.01 | F33: 1101127.278 | G33: 1141537.35
B35: ="* Del podatkov za leto "&(F20+1)&"* določen na osnovi prognoziranih pretokov." -> * Del podatkov za leto 2025* določen na osnovi prognoziranih pretokov.
B38: Predpisan kalkulacijski postopek v skladu s členom 15 (odstavki 2 do 6)
B39: Opomba: Postopek izračuna sezonskih faktorjev za mesečne standardne produkte zmogljivosti za zagotovljeno zmogljivost temelji na prognoziranih pretokih.
B41: Člen 15.3a & b
B42: (a) "povprečni podatki o prognoziranih pretokih ali prognoziranih pogodbenih zmogljivostih, če se sezonski faktorji računajo za nekatere ali vse povezovalne točke;" & (b) "izračunane vrednosti iz točke (a) se seštejejo"
B44: Plinski mesec | C44: ="Prognoziran povprečni urni pretok v letu "&(F20+1)&" [kWh]" -> Prognoziran povprečni urni pretok v letu 2025 [kWh]
B45: Januar | C45: 1616270.065
B46: Februar | C46: 1399101.96
B47: Marec | C47: 1268442.215
B48: April | C48: 1137819.561
B49: Maj | C49: 875157.1632
B50: Junij | C50: 833776.4413
B51: Julij | C51: 813881.7855
B52: Avgust | C52: 778946.7613
B53: September | C53: 909613.6713
B54: Oktober | C54: 954467.0423
B55: November | C55: 1454889.206
B56: December | C56: 1656082.33
B57: Seštevek | C57: =SUM(C45:C56) -> 13698448.2
B59: Člen 15.3c
B60: "stopnja uporabe se izračuna tako, da se vsaka od izračunanih vrednosti iz točke (a) deli z izračunano vrednostjo iz točke (b);"
B63: Plinski mesec | C63: Stopnja uporabe | D63: Korekcija stopnje uporabe v primeru vrednosti 0
B64: Januar | C64: =C45/$C$57 -> 0.1179892818 | D64: =IF(C45/$C$57=0,0.1,C45/$C$57) -> 0.1179892818
B65: Februar | C65: =C46/$C$57 -> 0.1021357996 | D65: =IF(C46/$C$57=0,0.1,C46/$C$57) -> 0.1021357996
B66: Marec | C66: 0.09259751148 | D66: 0.09259751148
B67: April | C67: 0.08306193112 | D67: 0.08306193112
B68: Maj | C68: 0.06388732142 | D68: 0.06388732142
B69: Junij | C69: 0.0608664886 | D69: 0.0608664886
B70: Julij | C70: 0.05941415944 | D70: 0.05941415944
B71: Avgust | C71: 0.0568638688 | D71: 0.0568638688
B72: September | C72: 0.06640267992 | D72: 0.06640267992
B73: Oktober | C73: 0.06967701949 | D73: 0.06967701949
B74: November | C74: 0.1062083226 | D74: 0.1062083226
B75: December | C75: 0.1208956157 | D75: 0.1208956157
B78: Člen 15.3d
B79: "izračunane vrednosti iz točke (c) se pomnožijo z 12. Če so izračunane vrednosti enake nič, se, glede na to, kaj je nižje, spremenijo v 0,1 oziroma v najnižjo izračunano vrednost, ki ni enaka nič;"
B81: Plinski mesec | C81: Stopnja uporabe x 12
B82: Januar | C82: =IF(C64=0,MIN($D$64:$D$75),C64)*12 -> 1.415871382
B83: Februar | C83: 1.225629595
B84: Marec | C84: 1.111170138
B85: April | C85: 0.9967431735
B86: Maj | C86: 0.7666478571
B87: Junij | C87: 0.7303978632
B88: Julij | C88: 0.7129699133
B89: Avgust | C89: 0.6823664256
B90: September | C90: 0.7968321591
B91: Oktober | C91: 0.8361242338
B92: November | C92: 1.274499871
B93: December | C93: 1.450747389
B95: Člen 15.3e
B96: "izhodiščna stopnja ustreznih sezonskih faktorjev se izračuna tako, da se vsaka od izračunanih vrednosti iz točke (d) potencira z istim eksponentom, ki ne sme biti manjši od 0 in večji od 2;"
B98: Plinski mesec | C98: Sezonski faktor
B99: Januar | C99: =POWER(C82,$E$13) -> 1.684750933
B100: Februar | C100: =POWER(C83,$E$13) -> 1.356871932
B101: Marec | C101: 1.171307279
B102: April | C102: 0.99511874
B103: Maj | C103: 0.6712648232
B104: Junij | C104: 0.6242222446
B105: Julij | C105: =POWER(C88,$E$13) -> 0.6020142967
B106: Avgust | C106: 0.563672017
B107: September | C107: 0.7112958584
B108: Oktober | C108: 0.7645505701
B109: November | C109: 1.438830694
B110: December | C110: 1.74738135
B112: Člen 15.3f
B113: "izračuna se aritmetična sredina zmnožkov izračunanih vrednosti iz točke (e) in multiplikator za mesečne standardne produkte zmogljivosti;"
B115: Plinski mesec | C115: Začetni sezonski faktor x multiplikator
C116: Mesečni | D116: Dnevni | E116: Znotraj dneva
B117: Januar | C117: =C99*$E$10 -> 2.442888853 | D117: =C99*$E$11 -> 4.633065067 | E117: =C99*$E$12 -> 4.717302613
B118: Februar | C118: =C100*$E$10 -> 1.967464301 | D118: =C100*$E$11 -> 3.731397813 | E118: =C100*$E$12 -> 3.799241409
B119: Marec | C119: 1.698395554 | D119: 3.221095016 | E119: 3.27966038
B120: April | C120: 1.442922173 | D120: 2.736576535 | E120: 2.786332472
B121: Maj | C121: 0.9733339936 | D121: 1.845978264 | E121: 1.879541505
B122: Junij | C122: 0.9051222547 | D122: 1.716611173 | E122: 1.747822285
B123: Julij | C123: 0.8729207302 | D123: 1.655539316 | E123: 1.685640031
B124: Avgust | C124: 0.8173244247 | D124: 1.550098047 | E124: 1.578281648
B125: September | C125: 1.031378995 | D125: 1.956063611 | E125: 1.991628403
B126: Oktober | C126: 1.108598327 | D126: 2.102514068 | E126: 2.140741596
B127: November | C127: 2.086304506 | D127: 3.956784408 | E127: 4.028725943
B128: December | C128: 2.533702958 | D128: 4.805298714 | E128: 4.892667781
B129: Povprečje | C129: =AVERAGE(C117:C128) -> 1.490029756 | D129: =AVERAGE(D117:D128) -> 2.825918503 | E129: =AVERAGE(E117:E128) -> 2.877298839
B131: Člen 15.3g
B132: "izračunana vrednost iz točke (f) se primerja z razponom iz člena 13(1), kot sledi:
B133: (i) če je ta vrednost v tem razponu, je stopnja sezonskih faktorjev enaka ustreznim izračunanim vrednostim iz točke (e); (ii) če ta vrednost ni v razponu teh mejnih vrednosti, se uporablja točka (h);"
B135: Člen 15.3h
B136: "stopnja sezonskih faktorjev se izračuna kot zmnožek ustreznih izračunanih vrednosti iz točke (e), korekcijski faktor pa se izračuna:
B137: (i) če je izračunana vrednost iz točke (f) višja od 1,5, se korekcijski faktor izračuna tako, da se 1,5 deli s to vrednostjo; (ii) če je izračunana vrednost iz točke (f) nižja od 1, se korekcijski faktor izračuna tako, da se 1 deli s to vrednostjo.
C139: Mesečni | D139: Dnevni | E139: Znotraj dneva
B140: Korekcijski faktor | C140: =1.5/C129 -> 1.006691305 | D140: =3/D129 -> 1.06160174 | E140: =3/E129 -> 1.042644566
B142: Plinski mesec | C142: Sezonski faktor
C143: Mesečni | D143: Dnevni | E143: Znotraj dneva
B144: Januar | C144: =IF($C$129>1.5,C99*$C$140,C99) -> 1.684750933 | D144: =IF($D$129>3,C99*$D$140,C99) -> 1.684750933 | E144: =IF($E$129>3,C99*$E$140,C99) -> 1.684750933
B145: Februar | C145: =IF($C$129>1.5,C100*$C$140,C100) -> 1.356871932 | D145: =IF($D$129>3,C100*$D$140,C100) -> 1.356871932 | E145: =IF($E$129>3,C100*$E$140,C100) -> 1.356871932
B146: Marec | C146: 1.171307279 | D146: 1.171307279 | E146: 1.171307279
B147: April | C147: 0.99511874 | D147: 0.99511874 | E147: 0.99511874
B148: Maj | C148: 0.6712648232 | D148: 0.6712648232 | E148: 0.6712648232
B149: Junij | C149: 0.6242222446 | D149: 0.6242222446 | E149: 0.6242222446
B150: Julij | C150: 0.6020142967 | D150: 0.6020142967 | E150: 0.6020142967
B151: Avgust | C151: 0.563672017 | D151: 0.563672017 | E151: 0.563672017
B152: September | C152: 0.7112958584 | D152: 0.7112958584 | E152: 0.7112958584
B153: Oktober | C153: 0.7645505701 | D153: 0.7645505701 | E153: 0.7645505701
B154: November | C154: 1.438830694 | D154: 1.438830694 | E154: 1.438830694
B155: December | C155: 1.74738135 | D155: 1.74738135 | E155: 1.74738135
B157: Člen 15.4
B158: "Za dnevne standardne produkte zmogljivosti za zagotovljeno zmogljivost in znotrajdnevne standardne produkte zmogljivosti za zagotovljeno zmogljivost se sezonski faktor smiselno izračuna po postopku iz odstavka 3(f) do (h)."
B161: Člen 15.5
B162: "Postopek izračuna sezonskih faktorjev za četrtletne standardne produkte zmogljivosti za zagotovljeno zmogljivost:
B163: "(a) izhodiščna stopnja zadevnih sezonskih faktorjev se izračuna kot ena izmed naslednjih vrednosti: (i) enaka aritmetični sredini ustreznih sezonskih faktorjev, ki se uporabljajo za tri ustrezne mesece; (ii) enaka ali višja od najnižje in enaka ali nižja od najvišje stopnje ustreznih sezonskih faktorjev, ki se uporabljajo za tri ustrezne mesece;"
B165: (b) postopek iz odstavka 3(f) do (h) se izvede smiselno z uporabo izračunanih vrednostmi iz točke (a).
C167: (i) Aritmetična sredina | D167: (ii) minimum <= sezonski faktor <= maksimum
B168: Plinski kvartal | C168: Sezonski faktor(i) | D168: Sezonski faktorminimum | E168: Sezonski faktormaksimum | F168: Sezonski faktor(ii)
B169: Q2 | C169: =AVERAGE($C$144:$C$146) -> 1.404310048 | D169: =MIN($C$144:$C$146) -> 1.171307279 | E169: =MAX($C$144:$C$146) -> 1.684750933 | F169: 1.269 | L169: ID | M169: ID1 | N169: Naziv
B170: Q3 | C170: =AVERAGE($C$147:$C$149) -> 0.7635352693 | D170: =MIN($C$147:$C$149) -> 0.6242222446 | E170: =MAX($C$147:$C$149) -> 0.99511874 | F170: 0.785 | L170: 1 | M170: (i) | N170: Aritmetična sredina
B171: Q4 | C171: =AVERAGE($C$150:$C$152) -> 0.625660724 | D171: =MIN($C$150:$C$152) -> 0.563672017 | E171: =MAX($C$150:$C$152) -> 0.7112958584 | F171: 0.67 | L171: 2 | M171: (ii) | N171: minimum <= sezonski faktor <= maksimum
B172: Q1 | C172: =AVERAGE($C$153:$C$155) -> 1.316920872 | D172: =MIN($C$153:$C$155) -> 0.7645505701 | E172: =MAX($C$153:$C$155) -> 1.74738135 | F172: 1.23
L173: =MATCH(B177,Tabela1[ID1],0) -> 2
B175: Izbran postopek izračuna sezonskih faktorjev za četrtletne standardne produkte zmogljivosti za zagotovljeno zmogljivost:
B177: (ii) | C177: =VLOOKUP(MATCH(B177,Tabela1[ID1],0),Tabela1[],3) -> minimum <= sezonski faktor <= maksimum
B179: Člen 15.6
B180: "Za vse neletne standardne produkte zmogljivosti za zagotovljeno zmogljivost se izračunane vrednosti iz odstavkov 3 do 5 lahko zaokrožijo navzgor ali navzdol."
D182: Sezonski faktor
B183: Plinski mesec | C183: =C44 -> Prognoziran povprečni urni pretok v letu 2025 [kWh] | D183: Kvartalni | E183: Mesečni | F183: Dnevni | G183: Znotraj dneva
B184: Januar | C184: =ROUND(C45,3) -> 1616270.065 | D184: =IF($L$173=1,ROUND($C$169,3),$F$169) -> 1.269 | E184: =ROUND(C144,3) -> 1.685 | F184: =ROUND(D144,3) -> 1.685 | G184: =ROUND(E144,3) -> 1.685
B185: Februar | C185: =ROUND(C46,3) -> 1399101.96 | D185: =IF($L$173=1,ROUND($C$169,3),$F$169) -> 1.269 | E185: 1.357 | F185: 1.357 | G185: 1.357
B186: Marec | C186: 1268442.215 | D186: 1.269 | E186: 1.171 | F186: 1.171 | G186: 1.171
B187: April | C187: 1137819.561 | D187: =IF($L$173=1,ROUND($C$170,3),$F$170) -> 0.785 | E187: 0.995 | F187: 0.995 | G187: 0.995
B188: Maj | C188: 875157.163 | D188: =IF($L$173=1,ROUND($C$170,3),$F$170) -> 0.785 | E188: 0.671 | F188: 0.671 | G188: 0.671
B189: Junij | C189: 833776.441 | D189: 0.785 | E189: 0.624 | F189: 0.624 | G189: 0.624
B190: Julij | C190: 813881.785 | D190: =IF($L$173=1,ROUND($C$171,3),$F$171) -> 0.67 | E190: 0.602 | F190: 0.602 | G190: 0.602
B191: Avgust | C191: 778946.761 | D191: =IF($L$173=1,ROUND($C$171,3),$F$171) -> 0.67 | E191: 0.564 | F191: 0.564 | G191: 0.564
B192: September | C192: 909613.671 | D192: 0.67 | E192: 0.711 | F192: 0.711 | G192: 0.711
B193: Oktober | C193: 954467.042 | D193: =IF($L$173=1,ROUND($C$172,3),$F$172) -> 1.23 | E193: 0.765 | F193: 0.765 | G193: 0.765
B194: November | C194: 1454889.206 | D194: =IF($L$173=1,ROUND($C$172,3),$F$172) -> 1.23 | E194: 1.439 | F194: 1.439 | G194: 1.439
B195: December | C195: 1656082.33 | D195: 1.23 | E195: 1.747 | F195: 1.747 | G195: 1.747
